Workbook

Sheet 1-3 ГОДА
A1: 6 день на 08.09.2025
A2: МОУ детский сад № 320 Ежеденевное 20-ти дневное меню ( Весна-лето) для детей дошкольного возраста 1-3 лет, 12 часового режима функционирования
A3: Прием пищи, наименование блюда | B3: Масса порции | C3: Пищевые вещества | F3: Энергети-ческая ценность, ккал
C4: Белки, г | D4: Жиры, г | E4: Углеводы, г
A5: Завтрак
A6: КАША ЖИДКАЯ (пшеничная) ТТК № 105 | B6: 150 | C6: 7.0 | D6: 3.5 | E6: 29.1 | F6: 175.1
A7: КОФЕЙНЫЙ НАПИТОК С МОЛОКОМ №395 | B7: 150 | C7: 2.3 | D7: 1.8 | E7: 11.4 | F7: 71.3
A8: Бутерброд с ДЖЕМОМ ИЛИ ПОВИДЛОМ №2 | B8: 30/5/20 | C8: 2.3 | D8: 3.7 | E8: 27.4 | F8: 156.7
A9: БАТОН | B9: 40 | C9: 3.0 | D9: 1.2 | E9: 20.6 | F9: 104.8
A10: ИТОГО ЗА ЗАВТРАК | B10: 395 | C10: =SUM(C6:C9) -> 14.6 | D10: =D6+D7+D8+D9 -> 10.2 | E10: =SUM(E6:E9) -> 88.5 | F10: =F6+F7+F8+F9 -> 507.9
A11: II Завтрак
A12: ФРУКТЫ СВЕЖИЕ (яблоко) №368 | B12: 200 | C12: 0.8 | D12: 0.8 | E12: 19.0 | F12: 91.2
A13: ИТОГО ЗА 2-й ЗАВТРАК | B13: =SUM(B12) -> 200 | C13: =SUM(C12) -> 0.8 | D13: =SUM(D12) -> 0.8 | E13: =SUM(E12) -> 19.0 | F13: =SUM(F12) -> 91.2
A14: Обед
A15: ОГУРЕЦ СВЕЖИЙ | B15: 30 | C15: 0.2 | D15: 0 | E15: 0.5 | F15: 3.9
A16: ЩИ ИЗ СВЕЖЕЙ КАПУСТЫ С КАРТОФЕЛЕМ НА КУРИННОМ БУЛЬОНЕ ТТК №47 | B16: 150 | C16: 1.7 | D16: 3.0 | E16: 5.9 | F16: 57.7
A17: ПТИЦА,ТУШЕННАЯ В СОУСЕ С ОВОЩАМИ ТТК №66 | B17: 150 | C17: 14.4 | D17: 13.6 | E17: 14.7 | F17: 241.5
A18: КОМПОТ ИЗ СУШЕНЫХ ФРУКТОВ № 376 | B18: 150 | C18: 0.0 | D18: 0.0 | E18: 11.6 | F18: 46.5
A19: ХЛЕБ ПЕКЛЕВАННЫЙ | B19: 20 | C19: 1.3 | D19: 0.2 | E19: 8.5 | F19: 40.8
A20: ХЛЕБ ПШЕНИЧНЫЙ | B20: 20 | C20: 1.5 | D20: 0.1 | E20: 9.7 | F20: 46.0
A21: ИТОГО ЗА ОБЕД | B21: 520 | C21: 19.1 | D21: 16.9 | E21: 50.9 | F21: 436.4
A22: Уплотнённый полдник
A23: СУФЛЕ ИЗ РЫБЫ ТТК№74 | B23: 50 | C23: 6.5 | D23: 8.2 | E23: 2.1 | F23: 72.7
A24: ПЮРЕ КАРТОФЕЛЬНОЕ № 321 | B24: 110 | C24: 2.3 | D24: 3.3 | E24: 15.6 | F24: 104.9
A25: ЧАЙ С САХАРОМ, ВАРЕНЬЕМ. ДЖЕМОМ, МЕДОМ, ПОВИДЛОМ № 392 | B25: 180/10 | C25: 0.1 | D25: 0.0 | E25: 9.8 | F25: 39.4
A26: ХЛЕБ ПШЕНИЧНЫЙ | B26: 15 | C26: 1.1 | D26: 0.1 | E26: 9.7 | F26: 46.0
A27: БУЛОЧКА ВАНИЛЬНАЯ № 467 | B27: 50 | C27: 4.1 | D27: 3.9 | E27: 28.9 | F27: 167.3
A29: ИТОГО ЗА ПОЛДНИК | B29: 420 | C29: 14.5 | D29: =SUM(D23:D28) -> 15.5 | E29: =SUM(E23:E28) -> 66.1 | F29: 430.3
A30: Всего за день: | C30: =SUM(C29+C21+C13+C10) -> 49.0 | D30: =SUM(D29+D21+D13+D10) -> 43.4 | E30: 224.5 | F30: =SUM(F29+F21+F13+F10) -> 1,465.8

Sheet 3-7 ЛЕТ
A1: 6 день на 08.09.2025
A2: МОУ детский сад № 320 Ежеденевное 20-ти дневное меню ( Весна-лето) для детей дошкольного возраста 3-7 лет, 12 часового режима функционирования
A3: Прием пищи, наименование блюда | B3: Масса порции | C3: Пищевые вещества | F3: Энергети-ческая ценность, ккал
C4: Белки, г | D4: Жиры, г | E4: Углеводы, г
A5: Завтрак
A6: КАША ЖИДКАЯ (пшеничная) ТТК № 105 | B6: 150 | C6: 7.0 | D6: 3.5 | E6: 29.1 | F6: 175.1
A7: КОФЕЙНЫЙ НАПИТОК С МОЛОКОМ №395 | B7: 150 | C7: 2.3 | D7: 1.8 | E7: 11.4 | F7: 71.3
A8: Бутерброд с ДЖЕМОМ ИЛИ ПОВИДЛОМ №2 | B8: 30/5/20 | C8: 2.3 | D8: 3.7 | E8: 27.4 | F8: 156.7
A9: БАТОН | B9: 40 | C9: 3.0 | D9: 1.2 | E9: 20.6 | F9: 104.8
A10: ИТОГО ЗА ЗАВТРАК | B10: 395 | C10: =SUM(C6:C9) -> 14.6 | D10: =D6+D7+D8+D9 -> 10.2 | E10: =SUM(E6:E9) -> 88.5 | F10: =F6+F7+F8+F9 -> 507.9
A11: II Завтрак
A12: ФРУКТЫ СВЕЖИЕ (яблоко) №368 | B12: 200 | C12: 0.8 | D12: 0.8 | E12: 19.0 | F12: 91.2
A13: ИТОГО ЗА 2-й ЗАВТРАК | B13: =SUM(B12) -> 200 | C13: =SUM(C12) -> 0.8 | D13: =SUM(D12) -> 0.8 | E13: =SUM(E12) -> 19.0 | F13: =SUM(F12) -> 91.2
A14: Обед
A15: ОГУРЕЦ СВЕЖИЙ | B15: 30 | C15: 0.2 | D15: 0 | E15: 0.5 | F15: 3.9
A16: ЩИ ИЗ СВЕЖЕЙ КАПУСТЫ С КАРТОФЕЛЕМ НА КУРИННОМ БУЛЬОНЕ ТТК №47 | B16: 150 | C16: 1.7 | D16: 3.0 | E16: 5.9 | F16: 57.7
A17: ПТИЦА,ТУШЕННАЯ В СОУСЕ С ОВОЩАМИ ТТК №66 | B17: 150 | C17: 14.4 | D17: 13.6 | E17: 14.7 | F17: 241.5
A18: КОМПОТ ИЗ СУШЕНЫХ ФРУКТОВ № 376 | B18: 150 | C18: 0.0 | D18: 0.0 | E18: 11.6 | F18: 46.5
A19: ХЛЕБ ПЕКЛЕВАННЫЙ | B19: 20 | C19: 1.3 | D19: 0.2 | E19: 8.5 | F19: 40.8
A20: ХЛЕБ ПШЕНИЧНЫЙ | B20: 20 | C20: 1.5 | D20: 0.1 | E20: 9.7 | F20: 46.0
A21: ИТОГО ЗА ОБЕД | B21: 520 | C21: 19.1 | D21: 16.9 | E21: 50.9 | F21: 436.4
A22: Уплотнённый полдник
A23: СУФЛЕ ИЗ РЫБЫ ТТК№74 | B23: 50 | C23: 6.5 | D23: 8.2 | E23: 2.1 | F23: 72.7
A24: ПЮРЕ КАРТОФЕЛЬНОЕ № 321 | B24: 110 | C24: 2.3 | D24: 3.3 | E24: 15.6 | F24: 104.9
A25: ЧАЙ С САХАРОМ, ВАРЕНЬЕМ. ДЖЕМОМ, МЕДОМ, ПОВИДЛОМ № 392 | B25: 180/10 | C25: 0.1 | D25: 0.0 | E25: 9.8 | F25: 39.4
A26: ХЛЕБ ПШЕНИЧНЫЙ | B26: 15 | C26: 1.1 | D26: 0.1 | E26: 9.7 | F26: 46.0
A27: БУЛОЧКА ВАНИЛЬНАЯ № 467 | B27: 50 | C27: 4.1 | D27: 3.9 | E27: 28.9 | F27: 167.3
A29: ИТОГО ЗА ПОЛДНИК | B29: 420 | C29: 14.5 | D29: =SUM(D23:D28) -> 15.5 | E29: =SUM(E23:E28) -> 66.1 | F29: 430.3
A30: Всего за день: | C30: =SUM(C29+C21+C13+C10) -> 49.0 | D30: =SUM(D29+D21+D13+D10) -> 43.4 | E30: 224.5 | F30: =SUM(F29+F21+F13+F10) -> 1,465.8

Sheet Лист3
